[Event "*** Titled Tuesday Blitz"]
[Site "Chess.com"]
[Date "2021.03.02"]
[Round "6"]
[White "schondeln"]
[Black "SimplyDevina"]
[Result "1-0"]
[WhiteElo "2398"]
[BlackElo "2185"]
[TimeControl "180+1"]
[EndTime "11:07:56 PST"]
[Termination "schondeln won by resignation"]

1. e4 {[%clk 0:03:00.9]} 1... d5 {[%clk 0:02:57.8]} 2. exd5 {[%clk 0:03:00.4]}
2... Qxd5 {[%clk 0:02:58.7]} 3. Nc3 {[%clk 0:03:00.5]} 3... Qa5 {[%clk
0:02:58.7]} 4. Bc4 {[%clk 0:03:00.2]} 4... Nf6 {[%clk 0:02:59.2]} 5. Nge2 {[%clk
0:03:00.2]} 5... c6 {[%clk 0:02:59.9]} 6. O-O {[%clk 0:02:59.9]} 6... Bf5 {[%clk
0:03:00.1]} 7. Ng3 {[%clk 0:02:59.3]} 7... Bg4 {[%clk 0:02:49.8]} 8. Qe1 {[%clk
0:02:54.8]} 8... Nbd7 {[%clk 0:02:23.6]} 9. d3 {[%clk 0:02:54.2]} 9... e6 {[%clk
0:01:41.8]} 10. Bd2 {[%clk 0:02:52.3]} 10... Qc7 {[%clk 0:01:40.2]} 11. f3
{[%clk 0:02:50.3]} 11... Bh5 {[%clk 0:01:37]} 12. f4 {[%clk 0:02:30.8]} 12...
Bc5+ {[%clk 0:01:31.5]} 13. Kh1 {[%clk 0:02:29.7]} 13... O-O-O {[%clk
0:01:09.9]} 14. Nxh5 {[%clk 0:02:21.1]} 14... Nxh5 {[%clk 0:01:09.7]} 15. f5
{[%clk 0:02:21.6]} 15... exf5 {[%clk 0:00:47.5]} 16. Rxf5 {[%clk 0:02:19.2]}
16... Nhf6 {[%clk 0:00:35.7]} 17. Bxf7 {[%clk 0:02:06.7]} 17... Rhf8 {[%clk
0:00:29.3]} 18. Be6 {[%clk 0:02:00.6]} 18... Bd6 {[%clk 0:00:29.8]} 19. Qh4
{[%clk 0:01:53.8]} 19... Kb8 {[%clk 0:00:25.5]} 20. Raf1 {[%clk 0:01:47]} 20...
g6 {[%clk 0:00:13.8]} 21. R5f2 {[%clk 0:01:27.2]} 21... Nh5 {[%clk 0:00:07.4]}
22. Rxf8 {[%clk 0:01:09.7]} 22... Rxf8 {[%clk 0:00:07.2]} 23. Rxf8+ {[%clk
0:01:09.8]} 23... Nxf8 {[%clk 0:00:07.4]} 24. Bg4 {[%clk 0:01:05.8]} 24... Ng7
{[%clk 0:00:02.4]} 25. Qf6 {[%clk 0:00:59.1]} 25... Qe7 {[%clk 0:00:02.6]} 26.
Qxe7 {[%clk 0:00:59.1]} 26... Bxe7 {[%clk 0:00:03.5]} 27. Ne4 {[%clk 0:00:55.2]}
27... Nfe6 {[%clk 0:00:03.6]} 28. c3 {[%clk 0:00:54.3]} 28... Kc7 {[%clk
0:00:04.2]} 29. d4 {[%clk 0:00:52.6]} 29... h5 {[%clk 0:00:04.6]} 30. Be2 {[%clk
0:00:51.3]} 30... b6 {[%clk 0:00:05]} 31. Bd3 {[%clk 0:00:51.4]} 31... g5 {[%clk
0:00:05.1]} 32. Kg1 {[%clk 0:00:50.8]} 32... c5 {[%clk 0:00:05.5]} 33. d5 {[%clk
0:00:48.9]} 33... Nf4 {[%clk 0:00:06.1]} 34. Bc4 {[%clk 0:00:46.9]} 34... Nf5
{[%clk 0:00:03.5]} 35. g3 {[%clk 0:00:47]} 35... Nh3+ {[%clk 0:00:02.2]} 36. Kg2
{[%clk 0:00:47.2]} 36... g4 {[%clk 0:00:03.1]} 37. a4 {[%clk 0:00:40.2]} 37...
Nd6 {[%clk 0:00:03.5]} 38. Nxd6 {[%clk 0:00:39.9]} 38... Kxd6 {[%clk 0:00:03.5]}
39. Bd3 {[%clk 0:00:33.7]} 39... Bg5 {[%clk 0:00:03.8]} 40. Be1 {[%clk
0:00:30.9]} 40... Kxd5 {[%clk 0:00:03.6]} 41. Bg6 {[%clk 0:00:30.3]} 41... h4
{[%clk 0:00:03.4]} 42. gxh4 {[%clk 0:00:29.7]} 42... Nf4+ {[%clk 0:00:02.2]} 43.
Kg3 {[%clk 0:00:28.1]} 43... Nxg6 {[%clk 0:00:02.1]} 44. hxg5 {[%clk 0:00:28]}
44... Ne5 {[%clk 0:00:02.6]} 45. Kg2 {[%clk 0:00:24.8]} 45... Nf3 {[%clk
0:00:02.6]} 46. Bg3 {[%clk 0:00:23.9]} 46... Nxg5 {[%clk 0:00:02.8]} 47. Bb8
{[%clk 0:00:23]} 47... a6 {[%clk 0:00:03.2]} 48. Kg3 {[%clk 0:00:23]} 48... Ne4+
{[%clk 0:00:01.8]} 49. Kxg4 {[%clk 0:00:22.2]} 49... Kc4 {[%clk 0:00:02.5]} 50.
h4 {[%clk 0:00:21.4]} 50... Kb3 {[%clk 0:00:02.8]} 51. Kf5 {[%clk 0:00:20.5]}
51... Ng3+ {[%clk 0:00:02.5]} 52. Bxg3 {[%clk 0:00:19.7]} 52... Kxb2 {[%clk
0:00:03]} 53. Be5 {[%clk 0:00:19.2]} 53... Kb3 {[%clk 0:00:02.4]} 54. h5 {[%clk
0:00:19.5]} 54... Kxa4 {[%clk 0:00:02.9]} 55. h6 {[%clk 0:00:20]} 55... b5
{[%clk 0:00:03.7]} 56. h7 {[%clk 0:00:20.5]} 56... b4 {[%clk 0:00:04.6]} 57.
cxb4 {[%clk 0:00:20.4]} 57... cxb4 {[%clk 0:00:05.5]} 58. h8=Q {[%clk
0:00:20.6]} 58... a5 {[%clk 0:00:05.9]} 59. Ke4 {[%clk 0:00:19.1]} 59... Ka3
{[%clk 0:00:06.4]} 60. Kd3 {[%clk 0:00:18.4]} 60... a4 {[%clk 0:00:07.3]} 61.
Bd6 {[%clk 0:00:16.4]} 61... Kb3 {[%clk 0:00:06.8]} 62. Qg8+ {[%clk 0:00:16.3]}
62... Ka3 {[%clk 0:00:06]} 63. Bxb4+ {[%clk 0:00:15]} 63... Kxb4 {[%clk
0:00:06]} 64. Qa2 {[%clk 0:00:14.8]} 1-0

[Event "*** Titled Tuesday Blitz"]
[Site "Chess.com"]
[Date "2021.03.02"]
[Round "6"]
[White "Nozdrachev_Leonid"]
[Black "lamomiablanca"]
[Result "0-1"]
[WhiteElo "2545"]
[BlackElo "2372"]
[TimeControl "180+1"]
[EndTime "11:07:57 PST"]
[Termination "lamomiablanca won on time"]

1. e4 {[%clk 0:03:00.9]} 1... c5 {[%clk 0:02:59.3]} 2. c3 {[%clk 0:02:59.7]}
2... Nf6 {[%clk 0:02:58.2]} 3. e5 {[%clk 0:02:58.6]} 3... Nd5 {[%clk 0:02:58.3]}
4. d4 {[%clk 0:02:59.2]} 4... cxd4 {[%clk 0:02:58.5]} 5. Nf3 {[%clk 0:02:59.7]}
5... Nc6 {[%clk 0:02:58.1]} 6. cxd4 {[%clk 0:02:58.7]} 6... d6 {[%clk
0:02:58.3]} 7. Bc4 {[%clk 0:02:58.1]} 7... Nb6 {[%clk 0:02:58]} 8. Bb5 {[%clk
0:02:54.7]} 8... dxe5 {[%clk 0:02:57.3]} 9. Nxe5 {[%clk 0:02:55.6]} 9... Bd7
{[%clk 0:02:57.4]} 10. Nxd7 {[%clk 0:02:50.2]} 10... Qxd7 {[%clk 0:02:57]} 11.
Nc3 {[%clk 0:02:50.3]} 11... e6 {[%clk 0:02:57.5]} 12. O-O {[%clk 0:02:49.5]}
12... Rd8 {[%clk 0:02:56.8]} 13. Re1 {[%clk 0:02:45.1]} 13... Be7 {[%clk
0:02:49.5]} 14. Be3 {[%clk 0:02:42.6]} 14... O-O {[%clk 0:02:47.2]} 15. a4
{[%clk 0:02:42.1]} 15... Bf6 {[%clk 0:02:41.2]} 16. Rc1 {[%clk 0:02:37.8]} 16...
a6 {[%clk 0:01:42]} 17. Bxc6 {[%clk 0:02:22.8]} 17... Qxc6 {[%clk 0:01:36.9]}
18. a5 {[%clk 0:02:11.1]} 18... Nd5 {[%clk 0:01:34.8]} 19. Ne4 {[%clk
0:02:10.1]} 19... Qb5 {[%clk 0:01:30]} 20. Nxf6+ {[%clk 0:01:48.6]} 20... Nxf6
{[%clk 0:01:28.1]} 21. Rc5 {[%clk 0:01:37.1]} 21... Qxc5 {[%clk 0:01:13]} 22.
dxc5 {[%clk 0:01:38]} 22... Rxd1 {[%clk 0:01:11.7]} 23. Rxd1 {[%clk 0:01:38.9]}
23... Nd5 {[%clk 0:01:11.9]} 24. Kf1 {[%clk 0:01:30]} 24... Rc8 {[%clk
0:01:11.1]} 25. b4 {[%clk 0:01:22.6]} 25... Kf8 {[%clk 0:01:04.8]} 26. Bd2
{[%clk 0:01:13.7]} 26... Ke8 {[%clk 0:01:01.3]} 27. Ke2 {[%clk 0:01:13.6]} 27...
Rd8 {[%clk 0:00:55.8]} 28. Rc1 {[%clk 0:01:04.1]} 28... Kd7 {[%clk 0:00:54.3]}
29. Rc4 {[%clk 0:00:58.6]} 29... g6 {[%clk 0:00:47.5]} 30. Rh4 {[%clk 0:00:56]}
30... h5 {[%clk 0:00:47]} 31. g4 {[%clk 0:00:53.7]} 31... hxg4 {[%clk
0:00:44.1]} 32. Rxg4 {[%clk 0:00:52.5]} 32... Kc6 {[%clk 0:00:44.3]} 33. Rh4
{[%clk 0:00:48.8]} 33... Rd7 {[%clk 0:00:43.3]} 34. Rg4 {[%clk 0:00:35]} 34...
Kb5 {[%clk 0:00:41.3]} 35. h4 {[%clk 0:00:34]} 35... Ne7 {[%clk 0:00:33.7]} 36.
Be3 {[%clk 0:00:24.2]} 36... Nc6 {[%clk 0:00:32.2]} 37. Bd2 {[%clk 0:00:18.8]}
37... e5 {[%clk 0:00:26.3]} 38. f4 {[%clk 0:00:10.3]} 38... Rd4 {[%clk
0:00:22.1]} 39. Bc3 {[%clk 0:00:05.8]} 39... Rc4 {[%clk 0:00:19.9]} 40. Bd2
{[%clk 0:00:02.6]} 40... exf4 {[%clk 0:00:17.8]} 41. Rg5 {[%clk 0:00:01.7]}
41... Nxb4 {[%clk 0:00:16.7]} 42. h5 {[%clk 0:00:01.5]} 42... gxh5 {[%clk
0:00:16.2]} 43. c6+ {[%clk 0:00:02]} 43... Kxc6 {[%clk 0:00:15.8]} 44. Rxh5
{[%clk 0:00:02.3]} 44... Nd5 {[%clk 0:00:15.3]} 45. Rf5 {[%clk 0:00:02.2]} 45...
f6 {[%clk 0:00:14.7]} 46. Rh5 {[%clk 0:00:02.1]} 46... Re4+ {[%clk 0:00:14.8]}
47. Kd3 {[%clk 0:00:01.2]} 47... Ra4 {[%clk 0:00:14.7]} 48. Rh8 {[%clk
0:00:01.6]} 48... Ra3+ {[%clk 0:00:14.6]} 49. Kc2 {[%clk 0:00:02.2]} 49... f3
{[%clk 0:00:14.6]} 50. Kd1 {[%clk 0:00:02.2]} 50... Ra2 {[%clk 0:00:14.3]} 51.
Rc8+ {[%clk 0:00:01.4]} 51... Kd7 {[%clk 0:00:14.2]} 52. Rc5 {[%clk 0:00:01.8]}
52... Kd6 {[%clk 0:00:14.4]} 53. Rc4 {[%clk 0:00:02]} 53... f2 {[%clk
0:00:14.4]} 54. Rd4 {[%clk 0:00:01.8]} 54... f1=Q+ {[%clk 0:00:14.2]} 0-1

[Event "*** Titled Tuesday Blitz"]
[Site "Chess.com"]
[Date "2021.03.02"]
[Round "6"]
[White "muchojogo"]
[Black "enriquetejedor"]
[Result "1-0"]
[WhiteElo "2363"]
[BlackElo "2514"]
[TimeControl "180+1"]
[EndTime "11:08:01 PST"]
[Termination "muchojogo won on time"]

1. e4 {[%clk 0:03:00.9]} 1... c6 {[%clk 0:02:50.8]} 2. d4 {[%clk 0:02:59.5]}
2... g6 {[%clk 0:02:48.4]} 3. Nd2 {[%clk 0:03:00.4]} 3... Bg7 {[%clk 0:02:47.7]}
4. c3 {[%clk 0:02:54.1]} 4... d5 {[%clk 0:02:38.7]} 5. Ngf3 {[%clk 0:02:47.9]}
5... dxe4 {[%clk 0:02:36.3]} 6. Nxe4 {[%clk 0:02:43.8]} 6... Nf6 {[%clk
0:02:37.2]} 7. Nxf6+ {[%clk 0:02:36.7]} 7... exf6 {[%clk 0:02:38.1]} 8. Bc4
{[%clk 0:02:29]} 8... O-O {[%clk 0:02:37.1]} 9. O-O {[%clk 0:02:28.5]} 9... Nd7
{[%clk 0:02:38]} 10. Re1 {[%clk 0:02:24.9]} 10... Nb6 {[%clk 0:02:34.1]} 11. Bb3
{[%clk 0:02:25]} 11... a5 {[%clk 0:02:33.9]} 12. a4 {[%clk 0:02:23.8]} 12... Re8
{[%clk 0:02:24.1]} 13. Bf4 {[%clk 0:02:16]} 13... Bg4 {[%clk 0:02:02.9]} 14.
Rxe8+ {[%clk 0:02:14.7]} 14... Qxe8 {[%clk 0:02:02.8]} 15. h3 {[%clk 0:02:11.3]}
15... Be6 {[%clk 0:02:02.7]} 16. Bc7 {[%clk 0:01:37.7]} 16... Nd5 {[%clk
0:02:02.4]} 17. Bg3 {[%clk 0:01:38.3]} 17... Bf8 {[%clk 0:02:02.4]} 18. Bc4
{[%clk 0:01:37]} 18... Qd7 {[%clk 0:01:59.6]} 19. Qb3 {[%clk 0:01:35]} 19... Re8
{[%clk 0:01:51.5]} 20. Re1 {[%clk 0:01:32.5]} 20... Rd8 {[%clk 0:01:43.9]} 21.
Nd2 {[%clk 0:01:29.8]} 21... f5 {[%clk 0:01:38.7]} 22. Nf3 {[%clk 0:01:29.3]}
22... f6 {[%clk 0:01:38.2]} 23. Bc7 {[%clk 0:01:14.7]} 23... Rc8 {[%clk
0:01:23.1]} 24. Bxa5 {[%clk 0:01:13.2]} 24... Bf7 {[%clk 0:01:20]} 25. Bb6
{[%clk 0:01:10.6]} 25... Bd6 {[%clk 0:01:11.5]} 26. a5 {[%clk 0:01:10.3]} 26...
g5 {[%clk 0:01:08.8]} 27. Bc5 {[%clk 0:01:05]} 27... g4 {[%clk 0:01:03.9]} 28.
hxg4 {[%clk 0:01:04.1]} 28... fxg4 {[%clk 0:01:02.2]} 29. Nh4 {[%clk 0:01:04.3]}
29... Bxc5 {[%clk 0:01:00.5]} 30. dxc5 {[%clk 0:01:05.2]} 30... Re8 {[%clk
0:00:58.9]} 31. Rxe8+ {[%clk 0:01:02.9]} 31... Qxe8 {[%clk 0:00:58.7]} 32. Qxb7
{[%clk 0:01:00.2]} 32... Qe1+ {[%clk 0:00:53.6]} 33. Bf1 {[%clk 0:00:59.9]}
33... Kg7 {[%clk 0:00:34.2]} 34. Nf5+ {[%clk 0:00:51.9]} 34... Kg6 {[%clk
0:00:33.9]} 35. Nd6 {[%clk 0:00:51.6]} 35... Be6 {[%clk 0:00:26.1]} 36. Qxc6
{[%clk 0:00:49.2]} 36... g3 {[%clk 0:00:26.4]} 37. Qe8+ {[%clk 0:00:41.7]} 37...
Kg5 {[%clk 0:00:20.5]} 38. fxg3 {[%clk 0:00:33.4]} 38... Ne3 {[%clk 0:00:16.4]}
39. Ne4+ {[%clk 0:00:28.4]} 39... Kf5 {[%clk 0:00:11.8]} 40. g4+ {[%clk
0:00:25.9]} 40... Ke5 {[%clk 0:00:05.8]} 41. Ng3 {[%clk 0:00:25.8]} 41... Nxf1
{[%clk 0:00:01.7]} 42. Nxf1 {[%clk 0:00:24]} 42... Kf4 {[%clk 0:00:01.7]} 43.
Qb8+ {[%clk 0:00:22.9]} 43... Kg5 {[%clk 0:00:01.4]} 44. Qg3 {[%clk 0:00:22]}
44... Qb1 {[%clk 0:00:01.2]} 45. Qe3+ {[%clk 0:00:21.5]} 45... Kg6 {[%clk
0:00:01.6]} 46. Qxe6 {[%clk 0:00:21.6]} 46... Qxb2 {[%clk 0:00:01.9]} 47. Qf5+
{[%clk 0:00:21.8]} 47... Kg7 {[%clk 0:00:01.8]} 48. c6 {[%clk 0:00:22]} 48...
Qxc3 {[%clk 0:00:01.5]} 49. Qf3 {[%clk 0:00:22.5]} 49... Qc5+ {[%clk 0:00:01.5]}
50. Kh2 {[%clk 0:00:22.1]} 50... Qxa5 {[%clk 0:00:02.4]} 51. Ng3 {[%clk
0:00:22.5]} 51... Qe5 {[%clk 0:00:02.1]} 52. Kh3 {[%clk 0:00:19.9]} 52... h5
{[%clk 0:00:01.3]} 53. Nxh5+ {[%clk 0:00:19.7]} 53... Kh7 {[%clk 0:00:01.3]} 54.
Qxf6 {[%clk 0:00:20.6]} 54... Qe3+ {[%clk 0:00:01.2]} 55. Kh4 {[%clk 0:00:18.8]}
55... Qe1+ {[%clk 0:00:01.1]} 56. Kh3 {[%clk 0:00:17.9]} 1-0

[Event "*** Titled Tuesday Blitz"]
[Site "Chess.com"]
[Date "2021.03.02"]
[Round "6"]
[White "frazier69"]
[Black "TeukkaSalama"]
[Result "1-0"]
[WhiteElo "2568"]
[BlackElo "2377"]
[TimeControl "180+1"]
[EndTime "11:08:02 PST"]
[Termination "frazier69 won by resignation"]

1. e4 {[%clk 0:03:00.9]} 1... e6 {[%clk 0:03:00]} 2. d4 {[%clk 0:02:59.5]} 2...
d5 {[%clk 0:03:00.5]} 3. Nc3 {[%clk 0:02:57]} 3... Bb4 {[%clk 0:03:00.1]} 4. e5
{[%clk 0:02:56.7]} 4... c5 {[%clk 0:03:00.3]} 5. a3 {[%clk 0:02:56.5]} 5...
Bxc3+ {[%clk 0:03:00.6]} 6. bxc3 {[%clk 0:02:57.4]} 6... Qa5 {[%clk 0:03:01]} 7.
Bd2 {[%clk 0:02:55.5]} 7... Qa4 {[%clk 0:03:01.2]} 8. h4 {[%clk 0:02:35.9]} 8...
Nc6 {[%clk 0:03:00.4]} 9. Nf3 {[%clk 0:02:27.4]} 9... Bd7 {[%clk 0:02:59.2]} 10.
h5 {[%clk 0:02:27]} 10... h6 {[%clk 0:02:58.8]} 11. Rh4 {[%clk 0:02:26]} 11...
Nge7 {[%clk 0:02:57.6]} 12. Rg4 {[%clk 0:02:10.6]} 12... Rg8 {[%clk 0:02:47.4]}
13. Qb1 {[%clk 0:02:00.8]} 13... c4 {[%clk 0:02:46.4]} 14. Be2 {[%clk
0:01:47.3]} 14... O-O-O {[%clk 0:02:45]} 15. Nh4 {[%clk 0:01:39.2]} 15... b6
{[%clk 0:02:35.5]} 16. f4 {[%clk 0:01:34.5]} 16... f6 {[%clk 0:02:13.2]} 17. Rg3
{[%clk 0:01:24.3]} 17... fxe5 {[%clk 0:02:08.6]} 18. fxe5 {[%clk 0:01:24.1]}
18... Rdf8 {[%clk 0:02:07.7]} 19. Qd1 {[%clk 0:01:18.5]} 19... Rf7 {[%clk
0:01:53]} 20. Rf3 {[%clk 0:01:14.4]} 20... Rgf8 {[%clk 0:01:51.7]} 21. Kf2
{[%clk 0:01:10]} 21... Kc7 {[%clk 0:01:32.9]} 22. Kg1 {[%clk 0:01:09.1]} 22...
Be8 {[%clk 0:01:28.4]} 23. Rxf7 {[%clk 0:01:03.8]} 23... Rxf7 {[%clk 0:01:27.9]}
24. Bg4 {[%clk 0:01:03.6]} 24... Nd8 {[%clk 0:01:17.6]} 25. Rc1 {[%clk
0:00:56.1]} 25... Nf5 {[%clk 0:00:49.3]} 26. Nxf5 {[%clk 0:00:50]} 26... exf5
{[%clk 0:00:50.2]} 27. Bf3 {[%clk 0:00:50.7]} 27... Bc6 {[%clk 0:00:37.5]} 28.
e6 {[%clk 0:00:48.4]} 28... Nxe6 {[%clk 0:00:36.1]} 29. Qe1 {[%clk 0:00:48.8]}
29... Kd7 {[%clk 0:00:29.8]} 30. Qe5 {[%clk 0:00:44.5]} 30... Qa5 {[%clk
0:00:23.5]} 31. Re1 {[%clk 0:00:43.8]} 31... Re7 {[%clk 0:00:23]} 32. Bf4 {[%clk
0:00:40.9]} 32... Qxa3 {[%clk 0:00:21.3]} 33. Bxd5 {[%clk 0:00:36]} 33... Bxd5
{[%clk 0:00:07.8]} 34. Qxd5+ {[%clk 0:00:34.7]} 34... Ke8 {[%clk 0:00:08.7]} 35.
Rxe6 {[%clk 0:00:32.7]} 35... Rxe6 {[%clk 0:00:09.2]} 36. Qxe6+ {[%clk
0:00:32.3]} 36... Kd8 {[%clk 0:00:08.2]} 37. Qd6+ {[%clk 0:00:23.5]} 37... Qxd6
{[%clk 0:00:07.6]} 38. Bxd6 {[%clk 0:00:24.4]} 38... Ke8 {[%clk 0:00:06.2]} 39.
Kf2 {[%clk 0:00:23.9]} 39... b5 {[%clk 0:00:04.4]} 40. Kf3 {[%clk 0:00:20.4]}
40... Kf7 {[%clk 0:00:04.8]} 41. Kf4 {[%clk 0:00:20.1]} 41... g6 {[%clk
0:00:04.8]} 42. Bb4 {[%clk 0:00:17.2]} 42... Kf6 {[%clk 0:00:03.6]} 43. hxg6
{[%clk 0:00:17.5]} 43... Kxg6 {[%clk 0:00:04.3]} 44. d5 {[%clk 0:00:17.5]} 44...
Kf6 {[%clk 0:00:04.5]} 45. d6 {[%clk 0:00:16.7]} 45... Ke6 {[%clk 0:00:04.7]}
46. d7 {[%clk 0:00:17.2]} 46... Kxd7 {[%clk 0:00:04.9]} 47. Kxf5 {[%clk
0:00:17.7]} 47... Kc6 {[%clk 0:00:05]} 48. Kg6 {[%clk 0:00:16.7]} 48... Kb6
{[%clk 0:00:05.6]} 49. Kxh6 {[%clk 0:00:16.1]} 49... a5 {[%clk 0:00:06.3]} 50.
Ba3 {[%clk 0:00:16.1]} 50... Kc6 {[%clk 0:00:05.4]} 51. g4 {[%clk 0:00:15.7]}
51... Kd5 {[%clk 0:00:06]} 52. g5 {[%clk 0:00:15.8]} 52... Ke4 {[%clk
0:00:06.7]} 53. g6 {[%clk 0:00:16]} 53... Ke3 {[%clk 0:00:07.2]} 54. g7 {[%clk
0:00:16.1]} 54... b4 {[%clk 0:00:07.9]} 55. Bxb4 {[%clk 0:00:15.5]} 55... axb4
{[%clk 0:00:07.5]} 56. cxb4 {[%clk 0:00:16.2]} 56... Kd2 {[%clk 0:00:07.8]} 57.
g8=Q {[%clk 0:00:16.1]} 57... c3 {[%clk 0:00:08.3]} 58. b5 {[%clk 0:00:15.3]}
58... Kxc2 {[%clk 0:00:08.5]} 59. Qc4 {[%clk 0:00:15.1]} 1-0

[Event "*** Titled Tuesday Blitz"]
[Site "Chess.com"]
[Date "2021.03.02"]
[Round "6"]
[White "Lyschko"]
[Black "szachuspl"]
[Result "0-1"]
[WhiteElo "2211"]
[BlackElo "2480"]
[TimeControl "180+1"]
[EndTime "11:08:02 PST"]
[Termination "szachuspl won on time"]

1. c4 {[%clk 0:03:00.9]} 1... Nf6 {[%clk 0:02:57.9]} 2. Nc3 {[%clk 0:02:59.7]}
2... e5 {[%clk 0:02:57.8]} 3. Nf3 {[%clk 0:02:58.6]} 3... Nc6 {[%clk 0:02:54.2]}
4. e3 {[%clk 0:02:58.5]} 4... Bb4 {[%clk 0:02:53.9]} 5. Qc2 {[%clk 0:02:57.7]}
5... O-O {[%clk 0:02:52.7]} 6. Nd5 {[%clk 0:02:55.2]} 6... Be7 {[%clk
0:02:51.4]} 7. a3 {[%clk 0:02:50.3]} 7... d6 {[%clk 0:02:51.4]} 8. b4 {[%clk
0:02:49]} 8... Nxd5 {[%clk 0:02:47.5]} 9. cxd5 {[%clk 0:02:48.4]} 9... Nb8
{[%clk 0:02:48.1]} 10. d4 {[%clk 0:02:46.1]} 10... exd4 {[%clk 0:02:45.4]} 11.
Nxd4 {[%clk 0:02:45.6]} 11... c5 {[%clk 0:02:43.9]} 12. dxc6 {[%clk 0:02:39.3]}
12... Nxc6 {[%clk 0:02:43.8]} 13. Nxc6 {[%clk 0:02:38.1]} 13... bxc6 {[%clk
0:02:43.8]} 14. Bd3 {[%clk 0:02:36.6]} 14... h6 {[%clk 0:02:40.6]} 15. Bb2
{[%clk 0:02:24.7]} 15... Bd7 {[%clk 0:02:39.2]} 16. O-O {[%clk 0:02:22.5]} 16...
a5 {[%clk 0:02:38.4]} 17. Rad1 {[%clk 0:02:16.6]} 17... axb4 {[%clk 0:02:37.3]}
18. axb4 {[%clk 0:02:16.6]} 18... Qb6 {[%clk 0:02:37.8]} 19. Bc3 {[%clk
0:02:10.7]} 19... Rfb8 {[%clk 0:02:34]} 20. Rb1 {[%clk 0:02:06.3]} 20... Be6
{[%clk 0:02:29.5]} 21. Bd4 {[%clk 0:02:01]} 21... Qb7 {[%clk 0:02:29]} 22. Qc3
{[%clk 0:01:57.6]} 22... Bf8 {[%clk 0:02:27.4]} 23. f4 {[%clk 0:01:55]} 23...
Ra2 {[%clk 0:02:24.8]} 24. Be4 {[%clk 0:01:41.1]} 24... d5 {[%clk 0:02:18.7]}
25. Bd3 {[%clk 0:01:30.8]} 25... Bxb4 {[%clk 0:02:07.9]} 26. Qb3 {[%clk
0:01:16.7]} 26... Raa8 {[%clk 0:02:07.1]} 27. Bc5 {[%clk 0:00:59]} 27... Bxc5
{[%clk 0:01:56.7]} 28. Qxb7 {[%clk 0:00:58.3]} 28... Rxb7 {[%clk 0:01:57]} 29.
Rxb7 {[%clk 0:00:56.9]} 29... Bxe3+ {[%clk 0:01:57.1]} 30. Kh1 {[%clk
0:00:56.9]} 30... g6 {[%clk 0:01:47.9]} 31. h3 {[%clk 0:00:51.4]} 31... Ra3
{[%clk 0:01:33.4]} 32. f5 {[%clk 0:00:46.8]} 32... Rxd3 {[%clk 0:01:12.9]} 33.
fxe6 {[%clk 0:00:46.2]} 33... fxe6 {[%clk 0:01:11.6]} 34. Ra1 {[%clk 0:00:33.5]}
34... Bc5 {[%clk 0:01:02.3]} 35. Ra8+ {[%clk 0:00:32.5]} 35... Bf8 {[%clk
0:01:01.4]} 36. Rbb8 {[%clk 0:00:32.4]} 36... Rd1+ {[%clk 0:01:00.8]} 37. Kh2
{[%clk 0:00:31.6]} 37... Rf1 {[%clk 0:01:01.7]} 38. Rc8 {[%clk 0:00:22.4]} 38...
c5 {[%clk 0:01:01.4]} 39. Rxc5 {[%clk 0:00:21.9]} 39... d4 {[%clk 0:00:52]} 40.
Rc6 {[%clk 0:00:19.9]} 40... e5 {[%clk 0:00:26.6]} 41. Rxg6+ {[%clk 0:00:19.5]}
41... Kf7 {[%clk 0:00:26.2]} 42. Rc6 {[%clk 0:00:16.7]} 42... Be7 {[%clk
0:00:21.8]} 43. Ra7 {[%clk 0:00:14.7]} 43... Rf6 {[%clk 0:00:20]} 44. Rcc7
{[%clk 0:00:12.9]} 44... Re6 {[%clk 0:00:19.9]} 45. Kg1 {[%clk 0:00:12.7]} 45...
e4 {[%clk 0:00:18.4]} 46. Kf1 {[%clk 0:00:12.8]} 46... d3 {[%clk 0:00:17.3]} 47.
Ke1 {[%clk 0:00:11.2]} 47... Ke8 {[%clk 0:00:13.6]} 48. Ra8+ {[%clk 0:00:09.2]}
48... Kf7 {[%clk 0:00:13.5]} 49. Ra4 {[%clk 0:00:08.7]} 49... Kf6 {[%clk
0:00:10.8]} 50. Rb7 {[%clk 0:00:06]} 50... Kf5 {[%clk 0:00:07.9]} 51. Rb5+
{[%clk 0:00:04.8]} 51... Kf4 {[%clk 0:00:07.6]} 52. Rh5 {[%clk 0:00:01.2]} 52...
Bg5 {[%clk 0:00:07.1]} 0-1